[Event "*** Titled Tuesday Blitz"]
[Site "Chess.com"]
[Date "2020.11.24"]
[Round "5"]
[White "Snegokhod"]
[Black "HaryKane"]
[Result "0-1"]
[WhiteElo "2422"]
[BlackElo "2595"]
[TimeControl "180+1"]
[EndTime "11:13:54 PST"]
[Termination "HaryKane won on time"]

1. d4 {[%clk 0:03:00.9]} 1... e6 {[%clk 0:03:00.1]} 2. c4 {[%clk 0:02:59.9]}
2... f5 {[%clk 0:03:00.6]} 3. g4 {[%clk 0:02:59.6]} 3... Nf6 {[%clk 0:02:59.5]}
4. gxf5 {[%clk 0:02:59.8]} 4... exf5 {[%clk 0:02:59.7]} 5. Nc3 {[%clk
0:02:59.4]} 5... Bb4 {[%clk 0:02:59.6]} 6. Bg2 {[%clk 0:02:58.4]} 6... O-O
{[%clk 0:02:58.2]} 7. Nf3 {[%clk 0:02:58.1]} 7... Ne4 {[%clk 0:02:56.3]} 8. Bd2
{[%clk 0:02:56.9]} 8... Bxc3 {[%clk 0:02:55.9]} 9. Bxc3 {[%clk 0:02:54.7]} 9...
Nxc3 {[%clk 0:02:49.3]} 10. bxc3 {[%clk 0:02:54.4]} 10... d6 {[%clk 0:02:49.4]}
11. Qd2 {[%clk 0:02:47]} 11... Nc6 {[%clk 0:02:44.7]} 12. O-O {[%clk 0:02:42.1]}
12... h6 {[%clk 0:02:37.1]} 13. Kh1 {[%clk 0:02:42]} 13... Na5 {[%clk
0:02:27.5]} 14. Ne1 {[%clk 0:02:41.2]} 14... Rb8 {[%clk 0:02:16.7]} 15. Nd3
{[%clk 0:02:35.5]} 15... c6 {[%clk 0:02:01.4]} 16. c5 {[%clk 0:02:30.1]} 16...
Nc4 {[%clk 0:01:55.9]} 17. Qf4 {[%clk 0:02:27.9]} 17... Be6 {[%clk 0:01:48.6]}
18. Rg1 {[%clk 0:02:15]} 18... Qe7 {[%clk 0:01:36]} 19. Bf3 {[%clk 0:02:09.8]}
19... Rf6 {[%clk 0:01:32.7]} 20. Rab1 {[%clk 0:01:58.9]} 20... Re8 {[%clk
0:01:28.8]} 21. cxd6 {[%clk 0:01:56.5]} 21... Nxd6 {[%clk 0:01:27.3]} 22. Ne5
{[%clk 0:01:50.9]} 22... Bd5 {[%clk 0:01:22.8]} 23. Rg3 {[%clk 0:01:27.2]} 23...
Ne4 {[%clk 0:01:17.1]} 24. Rg2 {[%clk 0:01:24.2]} 24... Nxc3 {[%clk 0:01:08.4]}
25. Rbg1 {[%clk 0:01:21.7]} 25... Bxf3 {[%clk 0:00:46.4]} 26. Qxf3 {[%clk
0:01:21.2]} 26... Ne4 {[%clk 0:00:43.8]} 27. Qh5 {[%clk 0:00:48.2]} 27... Rd8
{[%clk 0:00:35.1]} 28. f3 {[%clk 0:00:43.1]} 28... Ng5 {[%clk 0:00:30.3]} 29. h4
{[%clk 0:00:36.5]} 29... Ne6 {[%clk 0:00:30.5]} 30. e3 {[%clk 0:00:31.9]} 30...
Kh7 {[%clk 0:00:22.9]} 31. f4 {[%clk 0:00:32]} 31... Rg8 {[%clk 0:00:21.7]} 32.
Rg6 {[%clk 0:00:31.1]} 32... Nf8 {[%clk 0:00:20.6]} 33. R6g3 {[%clk 0:00:28]}
33... Re6 {[%clk 0:00:19]} 34. Kh2 {[%clk 0:00:28]} 34... Nd7 {[%clk 0:00:18.1]}
35. Kh3 {[%clk 0:00:27.6]} 35... Nxe5 {[%clk 0:00:18.3]} 36. dxe5 {[%clk
0:00:27.7]} 36... Qe8 {[%clk 0:00:16.8]} 37. Qxf5+ {[%clk 0:00:27.3]} 37... Kh8
{[%clk 0:00:16.5]} 38. h5 {[%clk 0:00:24.1]} 38... Re7 {[%clk 0:00:16.3]} 39.
Rg6 {[%clk 0:00:23.6]} 39... Qd7 {[%clk 0:00:16.3]} 40. e6 {[%clk 0:00:20.6]}
40... Qd2 {[%clk 0:00:11.4]} 41. R1g3 {[%clk 0:00:20.3]} 41... Qe1 {[%clk
0:00:10.9]} 42. Qe4 {[%clk 0:00:19.5]} 42... Qf1+ {[%clk 0:00:10.8]} 43. Kh2
{[%clk 0:00:17.8]} 43... Qf2+ {[%clk 0:00:11.4]} 44. Rg2 {[%clk 0:00:17.5]}
44... Qh4+ {[%clk 0:00:12.3]} 45. Kg1 {[%clk 0:00:17.8]} 45... Qxh5 {[%clk
0:00:13]} 46. f5 {[%clk 0:00:17.3]} 46... Qd1+ {[%clk 0:00:12.2]} 47. Kh2 {[%clk
0:00:17.3]} 47... Qh5+ {[%clk 0:00:11.7]} 48. Kg1 {[%clk 0:00:17.4]} 48... Rd8
{[%clk 0:00:12.4]} 49. Rf2 {[%clk 0:00:12.7]} 49... Rd1+ {[%clk 0:00:12.2]} 50.
Rf1 {[%clk 0:00:12.9]} 50... Rd2 {[%clk 0:00:11.8]} 51. Rf2 {[%clk 0:00:12.1]}
51... Rd1+ {[%clk 0:00:11]} 52. Rf1 {[%clk 0:00:12.4]} 52... Qe2 {[%clk
0:00:10.6]} 53. Rxd1 {[%clk 0:00:11.7]} 53... Qxd1+ {[%clk 0:00:11.5]} 54. Kg2
{[%clk 0:00:12.2]} 54... Qe2+ {[%clk 0:00:12.2]} 55. Kg3 {[%clk 0:00:12.3]}
55... Qe1+ {[%clk 0:00:12.8]} 56. Kg2 {[%clk 0:00:11.6]} 56... Qe2+ {[%clk
0:00:13.1]} 57. Kg3 {[%clk 0:00:12.1]} 57... Qe1+ {[%clk 0:00:13.5]} 58. Kg2
{[%clk 0:00:12.5]} 58... Qd2+ {[%clk 0:00:11.1]} 59. Kf3 {[%clk 0:00:12.3]}
59... Qd5 {[%clk 0:00:08.9]} 60. Kf4 {[%clk 0:00:11.3]} 60... Qd6+ {[%clk
0:00:08]} 61. Qe5 {[%clk 0:00:10.7]} 61... Qb4+ {[%clk 0:00:08.2]} 62. e4 {[%clk
0:00:10.2]} 62... Qd2+ {[%clk 0:00:07.7]} 63. Kf3 {[%clk 0:00:10.5]} 63... Qd1+
{[%clk 0:00:07.8]} 64. Kf2 {[%clk 0:00:10]} 64... Qd2+ {[%clk 0:00:07.8]} 65.
Kf3 {[%clk 0:00:10.4]} 65... Qd3+ {[%clk 0:00:08.4]} 66. Kf2 {[%clk 0:00:10.8]}
66... Qd2+ {[%clk 0:00:06.7]} 67. Kg3 {[%clk 0:00:10.5]} 67... Qe3+ {[%clk
0:00:06.5]} 68. Kh4 {[%clk 0:00:09.8]} 68... Qf2+ {[%clk 0:00:06.6]} 69. Kh3
{[%clk 0:00:09.7]} 69... Qf3+ {[%clk 0:00:07.1]} 70. Rg3 {[%clk 0:00:09.4]}
70... Qh5+ {[%clk 0:00:06.8]} 71. Kg2 {[%clk 0:00:09.1]} 71... Qe2+ {[%clk
0:00:07.7]} 72. Kh3 {[%clk 0:00:09.3]} 72... Qh5+ {[%clk 0:00:07.5]} 73. Kg2
{[%clk 0:00:09.3]} 73... Kh7 {[%clk 0:00:07.1]} 74. Qf4 {[%clk 0:00:08.3]} 74...
Qe2+ {[%clk 0:00:07.2]} 75. Kh3 {[%clk 0:00:07.5]} 75... Qh5+ {[%clk 0:00:07.1]}
76. Kg2 {[%clk 0:00:06.9]} 76... Qe2+ {[%clk 0:00:07.1]} 77. Kh3 {[%clk
0:00:06.4]} 77... Re8 {[%clk 0:00:07.7]} 78. Qg4 {[%clk 0:00:05.1]} 78... Qf1+
{[%clk 0:00:06.3]} 79. Kh2 {[%clk 0:00:04.9]} 79... Rg8 {[%clk 0:00:04.9]} 80.
Rg2 {[%clk 0:00:03.4]} 80... Qd3 {[%clk 0:00:03.6]} 81. e7 {[%clk 0:00:02.4]}
81... Qd6+ {[%clk 0:00:02.8]} 0-1

[Event "*** Titled Tuesday Blitz"]
[Site "Chess.com"]
[Date "2020.11.24"]
[Round "5"]
[White "davidkalashian"]
[Black "Gabrielian_Artur"]
[Result "1/2-1/2"]
[WhiteElo "2557"]
[BlackElo "2762"]
[TimeControl "180+1"]
[EndTime "11:14:01 PST"]
[Termination "Game drawn - insufficient material"]

1. d4 {[%clk 0:03:00.9]} 1... Nf6 {[%clk 0:02:58.5]} 2. c4 {[%clk 0:03:00.6]}
2... e6 {[%clk 0:02:57.8]} 3. Nf3 {[%clk 0:03:00]} 3... Bb4+ {[%clk 0:02:57.2]}
4. Bd2 {[%clk 0:02:58.3]} 4... c5 {[%clk 0:02:56.8]} 5. Bxb4 {[%clk 0:02:56.8]}
5... cxb4 {[%clk 0:02:56.8]} 6. g3 {[%clk 0:02:57.7]} 6... O-O {[%clk 0:02:49]}
7. Bg2 {[%clk 0:02:57.5]} 7... d6 {[%clk 0:02:47.2]} 8. O-O {[%clk 0:02:57]}
8... Re8 {[%clk 0:02:44.9]} 9. a3 {[%clk 0:02:51.3]} 9... bxa3 {[%clk
0:02:40.1]} 10. Rxa3 {[%clk 0:02:52.2]} 10... Nc6 {[%clk 0:02:39.6]} 11. Nc3
{[%clk 0:02:52]} 11... e5 {[%clk 0:02:36]} 12. dxe5 {[%clk 0:02:07.3]} 12...
dxe5 {[%clk 0:02:34.7]} 13. Qxd8 {[%clk 0:02:06.2]} 13... Rxd8 {[%clk
0:02:33.9]} 14. b4 {[%clk 0:02:00.6]} 14... e4 {[%clk 0:01:42.8]} 15. Ng5 {[%clk
0:01:57.6]} 15... Nxb4 {[%clk 0:01:38.8]} 16. Ngxe4 {[%clk 0:01:42]} 16... Nxe4
{[%clk 0:01:37.5]} 17. Bxe4 {[%clk 0:01:39.5]} 17... Bh3 {[%clk 0:01:16.1]} 18.
Rb1 {[%clk 0:01:37.5]} 18... a5 {[%clk 0:00:50.4]} 19. Bxb7 {[%clk 0:01:36.1]}
19... Ra7 {[%clk 0:00:38.7]} 20. Bg2 {[%clk 0:01:34.5]} 20... Bxg2 {[%clk
0:00:36.1]} 21. Kxg2 {[%clk 0:01:35.4]} 21... Rc7 {[%clk 0:00:30.2]} 22. Rxa5
{[%clk 0:01:21.2]} 22... Rxc4 {[%clk 0:00:30.2]} 23. Ra4 {[%clk 0:01:07.2]}
23... Rxc3 {[%clk 0:00:29.3]} 24. Raxb4 {[%clk 0:01:06.8]} 24... h5 {[%clk
0:00:28.8]} 25. Rb8 {[%clk 0:01:04.2]} 25... Rxb8 {[%clk 0:00:28.3]} 26. Rxb8+
{[%clk 0:01:05.1]} 26... Kh7 {[%clk 0:00:28.7]} 27. h4 {[%clk 0:01:05.5]} 27...
g6 {[%clk 0:00:27.9]} 28. e3 {[%clk 0:01:06]} 28... Kg7 {[%clk 0:00:27]} 29. Kf3
{[%clk 0:01:06]} 29... Rc4 {[%clk 0:00:26.3]} 30. Rd8 {[%clk 0:01:04.7]} 30...
Ra4 {[%clk 0:00:25.3]} 31. Rd2 {[%clk 0:00:59.5]} 31... Rb4 {[%clk 0:00:24.4]}
32. e4 {[%clk 0:00:59.7]} 32... Ra4 {[%clk 0:00:22.9]} 33. Kf4 {[%clk
0:00:58.3]} 33... Ra1 {[%clk 0:00:22.8]} 34. f3 {[%clk 0:00:57.8]} 34... Rf1
{[%clk 0:00:20.1]} 35. Rd5 {[%clk 0:00:56.6]} 35... Ra1 {[%clk 0:00:19.6]} 36.
Rb5 {[%clk 0:00:54.2]} 36... Rc1 {[%clk 0:00:19.2]} 37. g4 {[%clk 0:00:53.1]}
37... hxg4 {[%clk 0:00:19]} 38. Kxg4 {[%clk 0:00:53.6]} 38... Rg1+ {[%clk
0:00:19.2]} 39. Kf4 {[%clk 0:00:52.9]} 39... Rh1 {[%clk 0:00:19.6]} 40. Kg3
{[%clk 0:00:52.8]} 40... Rg1+ {[%clk 0:00:19.9]} 41. Kh2 {[%clk 0:00:52.3]}
41... Rf1 {[%clk 0:00:20.2]} 42. Kg2 {[%clk 0:00:52.1]} 42... Re1 {[%clk
0:00:20.8]} 43. h5 {[%clk 0:00:52.4]} 43... gxh5 {[%clk 0:00:20.2]} 44. Rxh5
{[%clk 0:00:53.3]} 44... Kg6 {[%clk 0:00:20.8]} 45. Rb5 {[%clk 0:00:52.6]} 45...
f6 {[%clk 0:00:21.2]} 46. Kg3 {[%clk 0:00:52.1]} 46... Ra1 {[%clk 0:00:20.9]}
47. Kf4 {[%clk 0:00:52.1]} 47... Ra4 {[%clk 0:00:21.2]} 48. Rb6 {[%clk 0:00:52]}
48... Rc4 {[%clk 0:00:20.6]} 49. Rd6 {[%clk 0:00:51.7]} 49... Ra4 {[%clk
0:00:20.7]} 50. Ke3 {[%clk 0:00:51.8]} 50... Ra3+ {[%clk 0:00:20.7]} 51. Rd3
{[%clk 0:00:51.3]} 51... Ra1 {[%clk 0:00:19.8]} 52. f4 {[%clk 0:00:50.6]} 52...
Re1+ {[%clk 0:00:19.7]} 53. Kf3 {[%clk 0:00:49.3]} 53... Rf1+ {[%clk 0:00:19.4]}
54. Kg3 {[%clk 0:00:46.3]} 54... Rg1+ {[%clk 0:00:19.4]} 55. Kh4 {[%clk
0:00:46.1]} 55... Re1 {[%clk 0:00:19.2]} 56. Rd4 {[%clk 0:00:42.8]} 56... Re3
{[%clk 0:00:17.5]} 57. f5+ {[%clk 0:00:35.6]} 57... Kh6 {[%clk 0:00:16.8]} 58.
Kg4 {[%clk 0:00:34]} 58... Re1 {[%clk 0:00:17.1]} 59. Rc4 {[%clk 0:00:27.8]}
59... Re2 {[%clk 0:00:16.7]} 60. Kf4 {[%clk 0:00:22.3]} 60... Rf2+ {[%clk
0:00:16]} 61. Ke3 {[%clk 0:00:22]} 61... Rf1 {[%clk 0:00:16.5]} 62. Rc8 {[%clk
0:00:20.4]} 62... Re1+ {[%clk 0:00:16.2]} 63. Kf3 {[%clk 0:00:19.5]} 63... Rf1+
{[%clk 0:00:16.4]} 64. Ke2 {[%clk 0:00:19.2]} 64... Rg1 {[%clk 0:00:14.4]} 65.
Rc7 {[%clk 0:00:16.8]} 65... Ra1 {[%clk 0:00:11.9]} 66. Rc8 {[%clk 0:00:04.6]}
66... Kg5 {[%clk 0:00:12]} 67. Ke3 {[%clk 0:00:04.6]} 67... Ra3+ {[%clk
0:00:11.4]} 68. Kd4 {[%clk 0:00:05]} 68... Ra4+ {[%clk 0:00:11.8]} 69. Kd5
{[%clk 0:00:05.4]} 69... Ra5+ {[%clk 0:00:12.2]} 70. Kd6 {[%clk 0:00:04.7]}
70... Ra6+ {[%clk 0:00:11.4]} 71. Rc6 {[%clk 0:00:04.9]} 71... Ra4 {[%clk
0:00:11.4]} 72. Kd5 {[%clk 0:00:05.1]} 72... Ra5+ {[%clk 0:00:11.2]} 73. Rc5
{[%clk 0:00:05.3]} 73... Ra1 {[%clk 0:00:11.4]} 74. Ke6 {[%clk 0:00:05]} 74...
Re1 {[%clk 0:00:10.7]} 75. Rc4 {[%clk 0:00:05.1]} 75... Re2 {[%clk 0:00:11]} 76.
Rd4 {[%clk 0:00:05.2]} 76... Re1 {[%clk 0:00:11.3]} 77. Kf7 {[%clk 0:00:05.2]}
77... Re2 {[%clk 0:00:11.8]} 78. Kg7 {[%clk 0:00:05.2]} 78... Re1 {[%clk
0:00:11.5]} 79. Rd6 {[%clk 0:00:05.4]} 79... Rxe4 {[%clk 0:00:11.5]} 80. Rxf6
{[%clk 0:00:05.5]} 80... Re7+ {[%clk 0:00:10.6]} 81. Rf7 {[%clk 0:00:05.9]}
81... Rxf7+ {[%clk 0:00:11.1]} 82. Kxf7 {[%clk 0:00:06.8]} 82... Kxf5 {[%clk
0:00:11.7]} 1/2-1/2

[Event "*** Titled Tuesday Blitz"]
[Site "Chess.com"]
[Date "2020.11.24"]
[Round "5"]
[White "maxip32"]
[Black "BlackGod93"]
[Result "1/2-1/2"]
[WhiteElo "2478"]
[BlackElo "2226"]
[TimeControl "180+1"]
[EndTime "11:14:27 PST"]
[Termination "Game drawn by repetition"]

1. e4 {[%clk 0:03:00.9]} 1... e5 {[%clk 0:02:59.4]} 2. Nf3 {[%clk 0:03:01.3]}
2... Nc6 {[%clk 0:02:59.1]} 3. Bb5 {[%clk 0:02:59.8]} 3... a6 {[%clk 0:02:59.1]}
4. Ba4 {[%clk 0:03:00]} 4... Nf6 {[%clk 0:02:59.5]} 5. d3 {[%clk 0:03:00.4]}
5... b5 {[%clk 0:02:59.5]} 6. Bb3 {[%clk 0:02:59.7]} 6... Bc5 {[%clk 0:02:59.3]}
7. O-O {[%clk 0:02:59.7]} 7... O-O {[%clk 0:02:59.7]} 8. a4 {[%clk 0:02:59.3]}
8... Rb8 {[%clk 0:02:59]} 9. axb5 {[%clk 0:02:58.2]} 9... axb5 {[%clk
0:02:59.9]} 10. Nc3 {[%clk 0:02:56.2]} 10... h6 {[%clk 0:02:59.1]} 11. h3 {[%clk
0:02:55.3]} 11... d6 {[%clk 0:02:59.3]} 12. Ne2 {[%clk 0:02:48.1]} 12... Be6
{[%clk 0:02:58.1]} 13. Bxe6 {[%clk 0:02:47.5]} 13... fxe6 {[%clk 0:02:59]} 14.
c3 {[%clk 0:02:46.7]} 14... b4 {[%clk 0:02:27.5]} 15. Ng3 {[%clk 0:02:38.8]}
15... bxc3 {[%clk 0:02:26.4]} 16. bxc3 {[%clk 0:02:39.7]} 16... Qe8 {[%clk
0:02:20.7]} 17. d4 {[%clk 0:02:29.2]} 17... Bb6 {[%clk 0:02:20.5]} 18. Ba3
{[%clk 0:02:21]} 18... Qg6 {[%clk 0:02:01.9]} 19. Kh2 {[%clk 0:02:17.4]} 19...
Nxe4 {[%clk 0:01:59.5]} 20. Qc2 {[%clk 0:01:58.3]} 20... Rf4 {[%clk 0:01:42.7]}
21. Rae1 {[%clk 0:01:07.1]} 21... d5 {[%clk 0:01:40.7]} 22. Nxe4 {[%clk
0:00:58.5]} 22... dxe4 {[%clk 0:01:07.8]} 23. Nxe5 {[%clk 0:00:49]} 23... Nxe5
{[%clk 0:01:07.8]} 24. dxe5 {[%clk 0:00:49.9]} 24... Qf5 {[%clk 0:00:57.3]} 25.
g3 {[%clk 0:00:42.7]} 25... Rxf2+ {[%clk 0:00:57.1]} 26. Rxf2 {[%clk 0:00:43]}
26... Bxf2 {[%clk 0:00:57.5]} 27. Rxe4 {[%clk 0:00:43.1]} 27... Bb6 {[%clk
0:00:53]} 28. Qe2 {[%clk 0:00:36.6]} 28... Rd8 {[%clk 0:00:51.3]} 29. c4 {[%clk
0:00:17.3]} 29... Qg5 {[%clk 0:00:43.2]} 30. c5 {[%clk 0:00:16.6]} 30... Ba5
{[%clk 0:00:38.5]} 31. Qf3 {[%clk 0:00:15]} 31... Qd2+ {[%clk 0:00:26.2]} 32.
Re2 {[%clk 0:00:15]} 32... Qd1 {[%clk 0:00:26.6]} 33. Rf2 {[%clk 0:00:13.9]}
33... Qb1 {[%clk 0:00:21.6]} 34. Qf7+ {[%clk 0:00:13.2]} 34... Kh8 {[%clk
0:00:21.8]} 35. Qxe6 {[%clk 0:00:13.1]} 35... Qe4 {[%clk 0:00:13.1]} 36. Qf5
{[%clk 0:00:12.3]} 36... Qe3 {[%clk 0:00:11.2]} 37. e6 {[%clk 0:00:12]} 37...
Re8 {[%clk 0:00:06.9]} 38. Bb2 {[%clk 0:00:07.5]} 38... Bc3 {[%clk 0:00:06.3]}
39. Bxc3 {[%clk 0:00:07.3]} 39... Qxc3 {[%clk 0:00:07.2]} 40. e7 {[%clk
0:00:07]} 40... Qxc5 {[%clk 0:00:04.3]} 41. Qf8+ {[%clk 0:00:06.5]} 41... Kh7
{[%clk 0:00:04.7]} 42. Rf5 {[%clk 0:00:04.9]} 42... Qc2+ {[%clk 0:00:03.9]} 43.
Rf2 {[%clk 0:00:05.2]} 43... Rxe7 {[%clk 0:00:04.5]} 44. Rxc2 {[%clk 0:00:02.5]}
44... Rd7 {[%clk 0:00:03.7]} 45. Re2 {[%clk 0:00:02.7]} 45... Rd6 {[%clk
0:00:04.2]} 46. Qf5+ {[%clk 0:00:03.2]} 46... Rg6 {[%clk 0:00:04.5]} 47. Qe5
{[%clk 0:00:03.7]} 47... Rf6 {[%clk 0:00:04.5]} 48. Qf5+ {[%clk 0:00:04.6]}
48... Rxf5 {[%clk 0:00:04.4]} 49. Re7 {[%clk 0:00:05.3]} 49... Rf6 {[%clk
0:00:05.3]} 50. Rxc7 {[%clk 0:00:05.2]} 50... Rf2+ {[%clk 0:00:06.2]} 51. Kg1
{[%clk 0:00:04.9]} 51... Ra2 {[%clk 0:00:07.1]} 52. Rf7 {[%clk 0:00:04.8]} 52...
Ra3 {[%clk 0:00:07.7]} 53. Kg2 {[%clk 0:00:03.5]} 53... Ra2+ {[%clk 0:00:08.1]}
54. Kf3 {[%clk 0:00:03.9]} 54... Ra1 {[%clk 0:00:09]} 55. Kg4 {[%clk 0:00:03.9]}
55... Ra4+ {[%clk 0:00:09.1]} 56. Kf3 {[%clk 0:00:03.8]} 56... Ra3+ {[%clk
0:00:09.2]} 57. Kf4 {[%clk 0:00:04.3]} 57... Kg6 {[%clk 0:00:10.1]} 58. Rb7
{[%clk 0:00:04.3]} 58... Ra4+ {[%clk 0:00:10.5]} 59. Kf3 {[%clk 0:00:03.7]}
59... h5 {[%clk 0:00:11]} 60. Rb6+ {[%clk 0:00:03.7]} 60... Kh7 {[%clk
0:00:11.6]} 61. Rb5 {[%clk 0:00:04.1]} 61... g6 {[%clk 0:00:12]} 62. Kg2 {[%clk
0:00:03.2]} 62... Kh6 {[%clk 0:00:11.6]} 63. Kf3 {[%clk 0:00:03.6]} 63... Ra3+
{[%clk 0:00:12]} 64. Kf4 {[%clk 0:00:03.8]} 64... Ra2 {[%clk 0:00:12.7]} 65. Kf3
{[%clk 0:00:04]} 65... Ra3+ {[%clk 0:00:13]} 66. Kf2 {[%clk 0:00:04.5]} 66... h4
{[%clk 0:00:12]} 67. gxh4 {[%clk 0:00:03.7]} 67... Rxh3 {[%clk 0:00:11.4]} 68.
Rb4 {[%clk 0:00:04.6]} 68... Kh5 {[%clk 0:00:11.7]} 69. Kg2 {[%clk 0:00:05]}
69... Rxh4 {[%clk 0:00:10.5]} 70. Rb5+ {[%clk 0:00:05.4]} 70... g5 {[%clk
0:00:09.6]} 71. Kg3 {[%clk 0:00:05.8]} 71... Ra4 {[%clk 0:00:09.9]} 72. Rc5
{[%clk 0:00:05.3]} 72... Ra3+ {[%clk 0:00:10.2]} 73. Kg2 {[%clk 0:00:05.8]}
73... Kh4 {[%clk 0:00:10.3]} 74. Rc8 {[%clk 0:00:02.7]} 74... Ra2+ {[%clk
0:00:09.5]} 75. Kg1 {[%clk 0:00:03]} 75... g4 {[%clk 0:00:09.7]} 76. Rc3 {[%clk
0:00:02.6]} 76... Rb2 {[%clk 0:00:10.2]} 77. Rd3 {[%clk 0:00:02.3]} 77... Rc2
{[%clk 0:00:10.4]} 78. Rb3 {[%clk 0:00:02.5]} 78... Rd2 {[%clk 0:00:10.8]} 79.
Rc3 {[%clk 0:00:02.8]} 79... Kg5 {[%clk 0:00:11.7]} 80. Rc5+ {[%clk 0:00:02.6]}
80... Kf4 {[%clk 0:00:12.6]} 81. Rc3 {[%clk 0:00:02.9]} 81... Re2 {[%clk
0:00:12.1]} 82. Rb3 {[%clk 0:00:03.1]} 82... Ra2 {[%clk 0:00:12.5]} 83. Rc3
{[%clk 0:00:03.1]} 83... Ra1+ {[%clk 0:00:12.9]} 84. Kg2 {[%clk 0:00:02.7]}
84... Rb1 {[%clk 0:00:13.8]} 85. Kf2 {[%clk 0:00:02.7]} 85... Rb2+ {[%clk
0:00:14.3]} 86. Kg1 {[%clk 0:00:03.2]} 86... Kg5 {[%clk 0:00:14]} 87. Rd3 {[%clk
0:00:03.6]} 87... Kh4 {[%clk 0:00:14.9]} 88. Rc3 {[%clk 0:00:04.1]} 88... Rb1+
{[%clk 0:00:15.3]} 89. Kg2 {[%clk 0:00:03.7]} 89... Rb2+ {[%clk 0:00:14.6]} 90.
Kg1 {[%clk 0:00:04.2]} 90... Rd2 {[%clk 0:00:15.5]} 91. Rb3 {[%clk 0:00:03.9]}
91... Ra2 {[%clk 0:00:16.1]} 92. Rc3 {[%clk 0:00:04.3]} 92... Rb2 {[%clk
0:00:16.4]} 93. Rd3 {[%clk 0:00:04.4]} 93... Ra2 {[%clk 0:00:16.9]} 94. Rc3
{[%clk 0:00:04.8]} 1/2-1/2

[Event "*** Titled Tuesday Blitz"]
[Site "Chess.com"]
[Date "2020.11.24"]
[Round "6"]
[White "zverr1"]
[Black "Forantes"]
[Result "1-0"]
[WhiteElo "2518"]
[BlackElo "2370"]
[TimeControl "180+1"]
[EndTime "11:16:36 PST"]
[Termination "zverr1 won by resignation"]

1. d4 {[%clk 0:03:00.9]} 1... Nf6 {[%clk 0:02:59.5]} 2. c4 {[%clk 0:03:01.3]}
2... g6 {[%clk 0:02:59.4]} 3. Nc3 {[%clk 0:03:01.7]} 3... d5 {[%clk 0:02:59.6]}
4. cxd5 {[%clk 0:02:58.4]} 4... Nxd5 {[%clk 0:03:00.5]} 5. Bd2 {[%clk
0:02:57.4]} 5... Bg7 {[%clk 0:03:00.4]} 6. e4 {[%clk 0:02:57.9]} 6... Nb6 {[%clk
0:03:00.6]} 7. Be3 {[%clk 0:02:57.8]} 7... O-O {[%clk 0:03:00.9]} 8. Be2 {[%clk
0:02:58.7]} 8... Nc6 {[%clk 0:03:01.1]} 9. Nf3 {[%clk 0:02:58.9]} 9... Re8
{[%clk 0:02:59.8]} 10. d5 {[%clk 0:02:56.2]} 10... Na5 {[%clk 0:02:50.5]} 11.
Bd4 {[%clk 0:02:53.8]} 11... e5 {[%clk 0:02:50.4]} 12. Bxb6 {[%clk 0:02:52.8]}
12... cxb6 {[%clk 0:02:40.8]} 13. b4 {[%clk 0:02:53.2]} 13... Qc7 {[%clk
0:02:40.9]} 14. Qd3 {[%clk 0:02:51]} 14... f5 {[%clk 0:02:30.9]} 1-0

[Event "*** Titled Tuesday Blitz"]
[Site "Chess.com"]
[Date "2020.11.24"]
[Round "6"]
[White "barbara25"]
[Black "eightbyeightchess"]
[Result "0-1"]
[WhiteElo "2256"]
[BlackElo "2421"]
[TimeControl "180+1"]
[EndTime "11:17:45 PST"]
[Termination "eightbyeightchess won by resignation"]

1. e4 {[%clk 0:03:00.7]} 1... e6 {[%clk 0:02:59.8]} 2. d4 {[%clk 0:03:00.7]}
2... d5 {[%clk 0:02:59.1]} 3. Nc3 {[%clk 0:03:00.6]} 3... Nf6 {[%clk 0:02:58.7]}
4. Bg5 {[%clk 0:02:59.5]} 4... Be7 {[%clk 0:02:50.3]} 5. e5 {[%clk 0:02:57.1]}
5... Nfd7 {[%clk 0:02:49.9]} 6. Bxe7 {[%clk 0:02:57.2]} 6... Qxe7 {[%clk
0:02:50.8]} 7. f4 {[%clk 0:02:55.9]} 7... a6 {[%clk 0:02:50.5]} 8. Nf3 {[%clk
0:02:56]} 8... c5 {[%clk 0:02:50.8]} 9. Qd2 {[%clk 0:02:56.1]} 9... Nc6 {[%clk
0:02:48.2]} 10. O-O-O {[%clk 0:02:55.8]} 10... cxd4 {[%clk 0:02:48.2]} 11. Nxd4
{[%clk 0:02:55.2]} 11... Qc5 {[%clk 0:02:48.9]} 12. Nb3 {[%clk 0:02:54.9]} 12...
Qa7 {[%clk 0:02:38.8]} 13. Kb1 {[%clk 0:02:54.5]} 13... b5 {[%clk 0:02:39]} 14.
g4 {[%clk 0:02:51.1]} 14... Bb7 {[%clk 0:02:38.7]} 15. Bg2 {[%clk 0:02:50.7]}
15... O-O-O {[%clk 0:02:36]} 16. Ne2 {[%clk 0:02:48.8]} 16... Kb8 {[%clk
0:02:32.6]} 17. Ned4 {[%clk 0:02:48.7]} 17... Nb6 {[%clk 0:02:31.6]} 18. Nxc6+
{[%clk 0:02:48.6]} 18... Bxc6 {[%clk 0:02:32.5]} 19. Nd4 {[%clk 0:02:48.2]}
19... Rc8 {[%clk 0:02:32.3]} 20. Nxc6+ {[%clk 0:02:47.8]} 20... Rxc6 {[%clk
0:02:33.2]} 21. Bf1 {[%clk 0:02:47.9]} 21... Rhc8 {[%clk 0:02:32.5]} 22. Bd3
{[%clk 0:02:47.2]} 22... g6 {[%clk 0:02:29.4]} 23. h4 {[%clk 0:02:47]} 23... Na4
{[%clk 0:02:26.5]} 24. h5 {[%clk 0:02:44.6]} 24... Qd4 {[%clk 0:02:23.9]} 25. c3
{[%clk 0:02:41.7]} 25... Rxc3 {[%clk 0:02:21.5]} 26. bxc3 {[%clk 0:02:41.7]}
26... Nxc3+ {[%clk 0:02:22.4]} 27. Ka1 {[%clk 0:02:41.1]} 27... Nxd1+ {[%clk
0:02:16.9]} 28. Kb1 {[%clk 0:02:39.9]} 28... Nc3+ {[%clk 0:02:09.8]} 29. Ka1
{[%clk 0:02:39.5]} 29... Ne4+ {[%clk 0:02:07.1]} 0-1

[Event "*** Titled Tuesday Blitz"]
[Site "Chess.com"]
[Date "2020.11.24"]
[Round "6"]
[White "Sergey85Rodchenkov"]
[Black "Tenamu"]
[Result "1-0"]
[WhiteElo "2453"]
[BlackElo "2311"]
[TimeControl "180+1"]
[EndTime "11:17:53 PST"]
[Termination "Sergey85Rodchenkov won by resignation"]

1. e4 {[%clk 0:02:40.3]} 1... e6 {[%clk 0:02:58.8]} 2. d4 {[%clk 0:02:39.9]}
2... d5 {[%clk 0:02:58.6]} 3. Nd2 {[%clk 0:02:39.9]} 3... Nf6 {[%clk 0:02:58.1]}
4. e5 {[%clk 0:02:39.9]} 4... Nfd7 {[%clk 0:02:58.5]} 5. Qg4 {[%clk 0:02:40.5]}
5... c5 {[%clk 0:02:59.4]} 6. c3 {[%clk 0:02:39.9]} 6... Nc6 {[%clk 0:02:59.5]}
7. Bd3 {[%clk 0:02:40.4]} 7... h5 {[%clk 0:02:55.4]} 8. Qf4 {[%clk 0:02:40.1]}
8... g5 {[%clk 0:02:55]} 9. Qe3 {[%clk 0:02:39.9]} 9... cxd4 {[%clk 0:02:53.6]}
10. cxd4 {[%clk 0:02:39.1]} 10... Qb6 {[%clk 0:02:54]} 11. Ne2 {[%clk
0:02:38.7]} 11... g4 {[%clk 0:02:52.8]} 12. O-O {[%clk 0:02:38.2]} 12... Bh6
{[%clk 0:02:52.3]} 13. Qg3 {[%clk 0:02:38.3]} 13... Nxd4 {[%clk 0:02:47.8]} 14.
Nb3 {[%clk 0:02:38.1]} 14... Nxe2+ {[%clk 0:02:45.8]} 15. Bxe2 {[%clk
0:02:37.6]} 15... Bxc1 {[%clk 0:02:45.9]} 16. Raxc1 {[%clk 0:02:36.2]} 16... a5
{[%clk 0:02:39.7]} 17. Rfd1 {[%clk 0:02:32.2]} 17... Nb8 {[%clk 0:02:32.4]} 18.
Rxc8+ {[%clk 0:02:24.8]} 18... Kd7 {[%clk 0:02:14]} 19. Rxh8 {[%clk 0:02:23.8]}
19... a4 {[%clk 0:02:13]} 20. Nd4 {[%clk 0:02:17.4]} 20... Qxb2 {[%clk
0:02:09.8]} 21. Bb5+ {[%clk 0:02:12.1]} 21... Nc6 {[%clk 0:02:09.1]} 22. Bxc6+
{[%clk 0:02:11.7]} 1-0